[Event "Titled Tuesday Blitz November 07 Late 2023"]
[White "Rosen, Eric"]
[Black "Kochiev, Ivan"]
[WhiteFideId "2032562"]
[BlackFideId "2917890"]
[WhiteElo "2741"]
[BlackElo "2492"]
[Result "1-0"]
[Round "2"]
[TimeControl "180+1"]
[Date "2023.11.07"]
[WhiteClock "0:00:56"]
[BlackClock "0:00:27"]
[Board "61"]

1. e4 {[%clk 0:03:00]}  c5 {[%clk 0:02:59]} 2. Nc3 {[%clk 0:03:00]}  e6 {[%clk 0:02:57]} 3. Nf3 {[%clk 0:02:59]}  Nc6 {[%clk 0:02:50]} 4. d4 {[%clk 0:02:59]}  cxd4 {[%clk 0:02:50]} 5. Nxd4 {[%clk 0:03:00]}  Qc7 {[%clk 0:02:50]} 6. Ncb5 {[%clk 0:03:00]}  Qb8 {[%clk 0:02:49]} 7. Bd3 {[%clk 0:03:00]}  Nf6 {[%clk 0:02:47]} 8. O-O {[%clk 0:02:49]}  a6 {[%clk 0:02:46]} 9. Nxc6 {[%clk 0:02:49]}  bxc6 {[%clk 0:02:47]} 10. Nc3 {[%clk 0:02:50]}  d5 {[%clk 0:02:48]} 11. Qe2 {[%clk 0:02:48]}  Be7 {[%clk 0:02:42]} 12. b3 {[%clk 0:02:47]}  O-O {[%clk 0:02:40]} 13. Bb2 {[%clk 0:02:40]}  Bb7 {[%clk 0:02:39]} 14. Na4 {[%clk 0:02:24]}  c5 {[%clk 0:02:25]} 15. Nb6 {[%clk 0:02:17]}  dxe4 {[%clk 0:02:11]} 16. Bc4 {[%clk 0:02:10]}  Ra7 {[%clk 0:02:05]} 17. Bxf6 {[%clk 0:01:57]}  Bxf6 {[%clk 0:02:05]} 18. Nd7 {[%clk 0:01:57]}  Qd6 {[%clk 0:01:18]} 19. Rad1 {[%clk 0:01:38]}  Bd5 {[%clk 0:01:16]} 20. Nxf8 {[%clk 0:01:32]}  Kxf8 {[%clk 0:01:02]} 21. Bxd5 {[%clk 0:01:20]}  exd5 {[%clk 0:01:02]} 22. Qxe4 {[%clk 0:01:18]}  Qxh2+ {[%clk 0:01:01]} 23. Kxh2 {[%clk 0:01:18]}  dxe4 {[%clk 0:01:02]} 24. Rfe1 {[%clk 0:01:10]}  Be5+ {[%clk 0:00:53]} 25. g3 {[%clk 0:01:10]}  f5 {[%clk 0:00:50]} 26. Rd5 {[%clk 0:01:09]}  Re7 {[%clk 0:00:39]} 27. f3 {[%clk 0:01:07]}  f4 {[%clk 0:00:31]} 28. Rxe4 {[%clk 0:00:55]}  fxg3+ {[%clk 0:00:27]} 29. Kg2 {[%clk 0:00:56]} 1-0


[Site "https://www.chess.com"]

[Event "Titled Tuesday Blitz November 07 Late 2023"]
[White "Zirkelbach, Maj"]
[Black "Tristan, Leonardo"]
[WhiteFideId "14613395"]
[BlackFideId "113816"]
[WhiteElo "2477"]
[BlackElo "2740"]
[Result "0-1"]
[Round "2"]
[TimeControl "180+1"]
[Date "2023.11.07"]
[WhiteClock "0:00:01"]
[BlackClock "0:02:07"]
[Board "62"]

1. d4 {[%clk 0:03:00]}  d5 {[%clk 0:03:00]} 2. c4 {[%clk 0:02:59]}  e6 {[%clk 0:03:00]} 3. Nf3 {[%clk 0:02:58]}  Nf6 {[%clk 0:02:59]} 4. Nc3 {[%clk 0:02:53]}  a6 {[%clk 0:02:59]} 5. cxd5 {[%clk 0:02:48]}  exd5 {[%clk 0:03:00]} 6. Bg5 {[%clk 0:02:48]}  Be6 {[%clk 0:03:00]} 7. e3 {[%clk 0:02:47]}  Nbd7 {[%clk 0:03:00]} 8. Bd3 {[%clk 0:02:41]}  Bd6 {[%clk 0:02:59]} 9. O-O {[%clk 0:02:41]}  c6 {[%clk 0:02:59]} 10. e4 {[%clk 0:02:37]}  dxe4 {[%clk 0:02:59]} 11. Nxe4 {[%clk 0:02:37]}  Be7 {[%clk 0:02:59]} 12. Re1 {[%clk 0:02:22]}  O-O {[%clk 0:02:58]} 13. Qc2 {[%clk 0:02:14]}  h6 {[%clk 0:02:55]} 14. Bh4 {[%clk 0:01:59]}  Nxe4 {[%clk 0:02:55]} 15. Bxe7 {[%clk 0:01:59]}  Qxe7 {[%clk 0:02:56]} 16. Bxe4 {[%clk 0:01:53]}  Nf6 {[%clk 0:02:56]} 17. Bd3 {[%clk 0:01:29]}  Qd6 {[%clk 0:02:55]} 18. Qc5 {[%clk 0:01:27]}  Rfd8 {[%clk 0:02:53]} 19. Bc2 {[%clk 0:00:37]}  Qxc5 {[%clk 0:02:32]} 20. dxc5 {[%clk 0:00:35]}  Bg4 {[%clk 0:02:26]} 21. Ne5 {[%clk 0:00:32]}  Rd2 {[%clk 0:02:23]} 22. Rac1 {[%clk 0:00:31]}  Be6 {[%clk 0:02:23]} 23. a3 {[%clk 0:00:31]}  Rad8 {[%clk 0:02:22]} 24. b4 {[%clk 0:00:29]}  Kf8 {[%clk 0:02:20]} 25. h3 {[%clk 0:00:29]}  Nh5 {[%clk 0:02:16]} 26. Re3 {[%clk 0:00:23]}  Nf4 {[%clk 0:02:16]} 27. Kf1 {[%clk 0:00:16]}  f6 {[%clk 0:02:12]} 28. Nd3 {[%clk 0:00:08]}  Bc4 {[%clk 0:02:10]} 29. Ke1 {[%clk 0:00:08]}  R2xd3 {[%clk 0:02:07]} 30. Bxd3 {[%clk 0:00:08]}  Nxd3+ {[%clk 0:02:08]} 31. Kd2 {[%clk 0:00:07]}  Nxc1+ {[%clk 0:02:08]} 32. Kxc1 {[%clk 0:00:08]}  Rd3 {[%clk 0:02:07]} 33. Rxd3 {[%clk 0:00:06]}  Bxd3 {[%clk 0:02:07]} 34. Kd2 {[%clk 0:00:01]}  Bf1 {[%clk 0:02:07]} 0-1


[Site "https://www.chess.com"]

[Event "Titled Tuesday Blitz November 07 Late 2023"]
[White "Mazurkiewicz, Michal"]
[Black "GaiozNigalidze"]
[WhiteFideId "1124943"]
[WhiteElo "2440"]
[BlackElo "2724"]
[Result "0-1"]
[Round "2"]
[TimeControl "180+1"]
[Date "2023.11.07"]
[WhiteClock "0:00:00"]
[BlackClock "0:00:57"]
[Board "64"]

1. e4 {[%clk 0:03:00]}  c5 {[%clk 0:03:00]} 2. Nf3 {[%clk 0:03:00]}  d6 {[%clk 0:03:00]} 3. g3 {[%clk 0:02:59]}  Nf6 {[%clk 0:03:00]} 4. d3 {[%clk 0:02:57]}  g6 {[%clk 0:03:00]} 5. Bg2 {[%clk 0:02:56]}  Bg7 {[%clk 0:03:01]} 6. O-O {[%clk 0:02:56]}  O-O {[%clk 0:03:01]} 7. e5 {[%clk 0:02:51]}  dxe5 {[%clk 0:02:59]} 8. Nxe5 {[%clk 0:02:52]}  Nd5 {[%clk 0:02:54]} 9. Re1 {[%clk 0:02:48]}  e6 {[%clk 0:02:48]} 10. Nc3 {[%clk 0:02:45]}  Nxc3 {[%clk 0:02:47]} 11. bxc3 {[%clk 0:02:45]}  Nd7 {[%clk 0:02:45]} 12. Bf4 {[%clk 0:02:39]}  Nb6 {[%clk 0:02:35]} 13. Qd2 {[%clk 0:02:29]}  Nd5 {[%clk 0:02:31]} 14. Bh6 {[%clk 0:02:29]}  Bxh6 {[%clk 0:02:25]} 15. Qxh6 {[%clk 0:02:30]}  Nxc3 {[%clk 0:02:25]} 16. h4 {[%clk 0:02:26]}  Nd5 {[%clk 0:02:05]} 17. h5 {[%clk 0:02:21]}  Qf6 {[%clk 0:02:04]} 18. Ng4 {[%clk 0:02:03]}  Qg7 {[%clk 0:02:03]} 19. Qxg7+ {[%clk 0:02:04]}  Kxg7 {[%clk 0:02:03]} 20. h6+ {[%clk 0:02:04]}  Kh8 {[%clk 0:02:04]} 21. Bxd5 {[%clk 0:01:33]}  exd5 {[%clk 0:02:02]} 22. Nf6 {[%clk 0:01:34]}  Be6 {[%clk 0:02:02]} 23. a4 {[%clk 0:01:31]}  Rad8 {[%clk 0:01:59]} 24. g4 {[%clk 0:01:15]}  g5 {[%clk 0:01:44]} 25. Re5 {[%clk 0:01:12]}  Rd6 {[%clk 0:01:44]} 26. Rxg5 {[%clk 0:01:08]}  Bc8 {[%clk 0:01:44]} 27. Nh5 {[%clk 0:00:16]}  Rxh6 {[%clk 0:01:39]} 28. Re1 {[%clk 0:00:13]}  f6 {[%clk 0:01:22]} 29. Rxd5 {[%clk 0:00:12]}  Bxg4 {[%clk 0:01:23]} 30. Ng3 {[%clk 0:00:10]}  b6 {[%clk 0:01:17]} 31. Re7 {[%clk 0:00:08]}  Rg8 {[%clk 0:01:15]} 32. Kf1 {[%clk 0:00:02]}  Bd1 {[%clk 0:01:12]} 33. Rdd7 {[%clk 0:00:03]}  Bxc2 {[%clk 0:01:09]} 34. Ke2 {[%clk 0:00:03]}  Bxa4 {[%clk 0:01:09]} 35. Rxa7 {[%clk 0:00:02]}  Bb3 {[%clk 0:01:05]} 36. Rab7 {[%clk 0:00:02]}  c4 {[%clk 0:00:58]} 37. Rxb6 {[%clk 0:00:02]}  cxd3+ {[%clk 0:00:58]} 38. Kxd3 {[%clk 0:00:03]}  Bd5 {[%clk 0:00:58]} 39. Kd4 {[%clk 0:00:02]}  Bf3 {[%clk 0:00:58]} 40. Nf5 {[%clk 0:00:00]}  Rh5 {[%clk 0:00:57]} 0-1


[Site "https://www.chess.com"]

[Event "Titled Tuesday Blitz November 07 Late 2023"]
[White "Martinez Ramirez, Lennis"]
[Black "Carrasco Miranda, Andres"]
[WhiteFideId "3509079"]
[BlackFideId "3405990"]
[WhiteElo "2720"]
[BlackElo "2418"]
[Result "1-0"]
[Round "2"]
[TimeControl "180+1"]
[Date "2023.11.07"]
[WhiteClock "0:00:24"]
[BlackClock "0:00:12"]
[Board "65"]

1. c4 {[%clk 0:03:00]}  Nf6 {[%clk 0:02:57]} 2. Nc3 {[%clk 0:03:00]}  g6 {[%clk 0:02:57]} 3. e4 {[%clk 0:03:00]}  e5 {[%clk 0:02:57]} 4. Nf3 {[%clk 0:02:59]}  Bg7 {[%clk 0:02:56]} 5. d4 {[%clk 0:02:49]}  exd4 {[%clk 0:02:55]} 6. Nxd4 {[%clk 0:02:50]}  O-O {[%clk 0:02:55]} 7. Be2 {[%clk 0:02:50]}  Re8 {[%clk 0:02:55]} 8. f3 {[%clk 0:02:47]}  c6 {[%clk 0:02:53]} 9. O-O {[%clk 0:02:33]}  d5 {[%clk 0:02:53]} 10. exd5 {[%clk 0:02:33]}  cxd5 {[%clk 0:02:54]} 11. c5 {[%clk 0:02:34]}  Nc6 {[%clk 0:02:52]} 12. Ndb5 {[%clk 0:02:34]}  Bf8 {[%clk 0:02:31]} 13. Bg5 {[%clk 0:02:21]}  Bxc5+ {[%clk 0:02:30]} 14. Kh1 {[%clk 0:02:21]}  Be7 {[%clk 0:02:30]} 15. Bxf6 {[%clk 0:02:18]}  Bxf6 {[%clk 0:02:29]} 16. Nxd5 {[%clk 0:02:19]}  Be5 {[%clk 0:02:13]} 17. f4 {[%clk 0:02:17]}  Bb8 {[%clk 0:01:59]} 18. Bf3 {[%clk 0:02:17]}  a6 {[%clk 0:01:57]} 19. Nbc3 {[%clk 0:02:05]}  Be6 {[%clk 0:01:54]} 20. a4 {[%clk 0:01:53]}  Ba7 {[%clk 0:01:49]} 21. Qb3 {[%clk 0:01:14]}  Rb8 {[%clk 0:01:42]} 22. Rad1 {[%clk 0:01:11]}  Nd4 {[%clk 0:01:38]} 23. Qc4 {[%clk 0:01:10]}  b5 {[%clk 0:01:28]} 24. axb5 {[%clk 0:01:10]}  axb5 {[%clk 0:01:29]} 25. Qc7 {[%clk 0:00:58]}  Qxc7 {[%clk 0:01:10]} 26. Nxc7 {[%clk 0:00:59]}  Nxf3 {[%clk 0:01:10]} 27. Nxe8 {[%clk 0:00:56]}  Nd4 {[%clk 0:00:49]} 28. Nc7 {[%clk 0:00:54]}  Bc4 {[%clk 0:00:49]} 29. Rfe1 {[%clk 0:00:54]}  Nf5 {[%clk 0:00:49]} 30. Rd7 {[%clk 0:00:45]}  b4 {[%clk 0:00:43]} 31. N3d5 {[%clk 0:00:43]}  Bf2 {[%clk 0:00:35]} 32. Re8+ {[%clk 0:00:41]}  Rxe8 {[%clk 0:00:34]} 33. Nxe8 {[%clk 0:00:42]}  Bd4 {[%clk 0:00:31]} 34. Nxb4 {[%clk 0:00:39]}  Bxb2 {[%clk 0:00:30]} 35. Nd6 {[%clk 0:00:33]}  Nxd6 {[%clk 0:00:27]} 36. Rxd6 {[%clk 0:00:34]}  Ba3 {[%clk 0:00:24]} 37. Rd4 {[%clk 0:00:32]}  Bxb4 {[%clk 0:00:23]} 38. Rxc4 {[%clk 0:00:32]}  Be7 {[%clk 0:00:24]} 39. g3 {[%clk 0:00:28]}  h5 {[%clk 0:00:23]} 40. Kg2 {[%clk 0:00:28]}  Kg7 {[%clk 0:00:24]} 41. h3 {[%clk 0:00:28]}  f5 {[%clk 0:00:23]} 42. Rc6 {[%clk 0:00:28]}  Kf7 {[%clk 0:00:23]} 43. Kf3 {[%clk 0:00:28]}  Bf6 {[%clk 0:00:23]} 44. Ke3 {[%clk 0:00:28]}  Bg7 {[%clk 0:00:21]} 45. Kd3 {[%clk 0:00:29]}  Bf6 {[%clk 0:00:21]} 46. Kc4 {[%clk 0:00:28]}  Be7 {[%clk 0:00:20]} 47. Kd5 {[%clk 0:00:28]}  Bf8 {[%clk 0:00:20]} 48. Rc7+ {[%clk 0:00:27]}  Be7 {[%clk 0:00:20]} 49. Ke5 {[%clk 0:00:26]}  Kf8 {[%clk 0:00:16]} 50. Ke6 {[%clk 0:00:26]}  Bb4 {[%clk 0:00:16]} 51. Kf6 {[%clk 0:00:24]}  Be1 {[%clk 0:00:12]} 52. Rc8# {[%clk 0:00:24]} 1-0


[Site "https://www.chess.com"]

[Event "Titled Tuesday Blitz November 07 Late 2023"]
[White "Goncalves, Davi Sulzbacher"]
[Black "Pakleza, Zbigniew"]
[WhiteFideId "2154510"]
[BlackFideId "1119290"]
[WhiteElo "2411"]
[BlackElo "2717"]
[Result "1-0"]
[Round "2"]
[TimeControl "180+1"]
[Date "2023.11.07"]
[WhiteClock "0:00:05"]
[BlackClock "0:00:00"]
[Board "67"]

1. Nf3 {[%clk 0:03:00]}  d5 {[%clk 0:02:59]} 2. d4 {[%clk 0:03:00]}  Nf6 {[%clk 0:02:59]} 3. Bg5 {[%clk 0:02:59]}  Ne4 {[%clk 0:02:58]} 4. Bh4 {[%clk 0:02:58]}  c6 {[%clk 0:02:58]} 5. Nbd2 {[%clk 0:02:57]}  Bf5 {[%clk 0:02:58]} 6. e3 {[%clk 0:02:55]}  Qb6 {[%clk 0:02:57]} 7. Rb1 {[%clk 0:02:54]}  Nd7 {[%clk 0:02:55]} 8. Bd3 {[%clk 0:02:54]}  e6 {[%clk 0:02:55]} 9. O-O {[%clk 0:02:52]}  h6 {[%clk 0:02:46]} 10. Bg3 {[%clk 0:02:22]}  Nxg3 {[%clk 0:02:05]} 11. hxg3 {[%clk 0:02:23]}  Bxd3 {[%clk 0:02:05]} 12. cxd3 {[%clk 0:02:23]}  Bd6 {[%clk 0:02:02]} 13. b4 {[%clk 0:02:20]}  O-O {[%clk 0:01:59]} 14. a4 {[%clk 0:02:14]}  Bxb4 {[%clk 0:01:39]} 15. Nb3 {[%clk 0:01:49]}  a5 {[%clk 0:01:36]} 16. g4 {[%clk 0:01:38]}  Qd8 {[%clk 0:01:29]} 17. e4 {[%clk 0:01:35]}  dxe4 {[%clk 0:01:09]} 18. dxe4 {[%clk 0:01:36]}  Nf6 {[%clk 0:01:09]} 19. g5 {[%clk 0:01:32]}  Nxe4 {[%clk 0:01:05]} 20. gxh6 {[%clk 0:01:32]}  Nc3 {[%clk 0:01:02]} 21. Qd3 {[%clk 0:01:00]}  Nxb1 {[%clk 0:00:52]} 22. Rxb1 {[%clk 0:00:58]}  gxh6 {[%clk 0:00:31]} 23. Ne5 {[%clk 0:00:57]}  Qg5 {[%clk 0:00:25]} 24. Rf1 {[%clk 0:00:38]}  Rad8 {[%clk 0:00:19]} 25. f4 {[%clk 0:00:38]}  Qf5 {[%clk 0:00:15]} 26. Qg3+ {[%clk 0:00:37]}  Kh7 {[%clk 0:00:15]} 27. Qh4 {[%clk 0:00:32]}  Rg8 {[%clk 0:00:11]} 28. Rf3 {[%clk 0:00:32]}  Rde8 {[%clk 0:00:02]} 29. Rh3 {[%clk 0:00:28]}  Rg6 {[%clk 0:00:02]} 30. Nxg6 {[%clk 0:00:14]}  Qxg6 {[%clk 0:00:03]} 31. Kh2 {[%clk 0:00:14]}  Be7 {[%clk 0:00:03]} 32. Qf2 {[%clk 0:00:13]}  Rg8 {[%clk 0:00:03]} 33. Nd2 {[%clk 0:00:12]}  Bd6 {[%clk 0:00:02]} 34. Rh4 {[%clk 0:00:07]}  Kg7 {[%clk 0:00:01]} 35. Nf3 {[%clk 0:00:07]}  Kf8 {[%clk 0:00:01]} 36. Ne5 {[%clk 0:00:06]}  Qf5 {[%clk 0:00:02]} 37. Rxh6 {[%clk 0:00:05]}  Ke7 {[%clk 0:00:02]} 38. Rh4 {[%clk 0:00:04]}  Rg7 {[%clk 0:00:01]} 39. Rh6 {[%clk 0:00:04]}  Rg8 {[%clk 0:00:01]} 40. Qh4+ {[%clk 0:00:05]}  Qf6 {[%clk 0:00:00]} 41. Rxf6 {[%clk 0:00:05]} 1-0


[Site "https://www.chess.com"]

[Event "Titled Tuesday Blitz November 07 Late 2023"]
[White "FrenchHarvey"]
[Black "Inepton_Fermion"]
[WhiteElo "2716"]
[BlackElo "2406"]
[Result "1-0"]
[Round "2"]
[TimeControl "180+1"]
[Date "2023.11.07"]
[WhiteClock "0:02:01"]
[BlackClock "0:00:01"]
[Board "68"]

1. e4 {[%clk 0:03:00]}  c5 {[%clk 0:02:59]} 2. Nc3 {[%clk 0:03:00]}  Nc6 {[%clk 0:02:57]} 3. Bb5 {[%clk 0:03:00]}  Nd4 {[%clk 0:02:57]} 4. Nf3 {[%clk 0:03:00]}  a6 {[%clk 0:02:55]} 5. Bd3 {[%clk 0:02:59]}  g6 {[%clk 0:02:47]} 6. Nxd4 {[%clk 0:02:56]}  cxd4 {[%clk 0:02:48]} 7. Ne2 {[%clk 0:02:57]}  Bg7 {[%clk 0:02:49]} 8. c3 {[%clk 0:02:57]}  e5 {[%clk 0:02:21]} 9. cxd4 {[%clk 0:02:56]}  exd4 {[%clk 0:02:22]} 10. Bc4 {[%clk 0:02:56]}  Ne7 {[%clk 0:02:14]} 11. O-O {[%clk 0:02:51]}  O-O {[%clk 0:02:14]} 12. d3 {[%clk 0:02:51]}  d5 {[%clk 0:02:10]} 13. exd5 {[%clk 0:02:51]}  Nxd5 {[%clk 0:02:10]} 14. Nf4 {[%clk 0:02:52]}  Nxf4 {[%clk 0:01:56]} 15. Bxf4 {[%clk 0:02:53]}  Bf5 {[%clk 0:01:56]} 16. a4 {[%clk 0:02:49]}  Qa5 {[%clk 0:01:47]} 17. Qb3 {[%clk 0:02:38]}  b5 {[%clk 0:01:42]} 18. axb5 {[%clk 0:02:36]}  Qb6 {[%clk 0:01:18]} 19. bxa6 {[%clk 0:02:33]}  Qxb3 {[%clk 0:01:18]} 20. Bxb3 {[%clk 0:02:30]}  Bxd3 {[%clk 0:01:09]} 21. a7 {[%clk 0:02:23]}  Bxf1 {[%clk 0:00:57]} 22. Kxf1 {[%clk 0:02:23]}  Rfd8 {[%clk 0:00:52]} 23. Bd1 {[%clk 0:02:12]}  d3 {[%clk 0:00:41]} 24. Bf3 {[%clk 0:02:12]}  Bxb2 {[%clk 0:00:38]} 25. Ra2 {[%clk 0:02:04]}  d2 {[%clk 0:00:27]} 26. Bxd2 {[%clk 0:02:03]}  Bd4 {[%clk 0:00:24]} 27. Bxa8 {[%clk 0:02:01]}  Rxa8 {[%clk 0:00:25]} 28. Be3 {[%clk 0:02:00]}  Bxe3 {[%clk 0:00:19]} 29. fxe3 {[%clk 0:02:01]}  Kg7 {[%clk 0:00:19]} 30. Ke2 {[%clk 0:02:02]}  Kf6 {[%clk 0:00:19]} 31. Kd3 {[%clk 0:02:02]}  Ke5 {[%clk 0:00:20]} 32. Kc4 {[%clk 0:02:03]}  Kd6 {[%clk 0:00:13]} 33. Kb5 {[%clk 0:02:03]}  Kc7 {[%clk 0:00:14]} 34. Ka6 {[%clk 0:02:02]}  Re8 {[%clk 0:00:07]} 35. Rc2+ {[%clk 0:02:02]}  Kd6 {[%clk 0:00:07]} 36. Kb7 {[%clk 0:02:02]}  Re7+ {[%clk 0:00:07]} 37. Kb8 {[%clk 0:02:03]}  Re8+ {[%clk 0:00:02]} 38. Rc8 {[%clk 0:02:01]}  Rxe3 {[%clk 0:00:01]} 1-0


[Site "https://www.chess.com"]

[Event "Titled Tuesday Blitz November 07 Late 2023"]
[White "Hasangatin, Ramil"]
[Black "PapaieDudu"]
[WhiteFideId "4122160"]
[WhiteElo "2699"]
[BlackElo "2381"]
[Result "1-0"]
[Round "2"]
[TimeControl "180+1"]
[Date "2023.11.07"]
[WhiteClock "0:01:15"]
[BlackClock "0:00:05"]
[Board "70"]

1. e4 {[%clk 0:03:00]}  c5 {[%clk 0:03:00]} 2. Nf3 {[%clk 0:03:00]}  d6 {[%clk 0:03:00]} 3. d4 {[%clk 0:03:00]}  cxd4 {[%clk 0:03:01]} 4. Qxd4 {[%clk 0:03:01]}  Nc6 {[%clk 0:02:58]} 5. Bb5 {[%clk 0:03:01]}  Bd7 {[%clk 0:02:56]} 6. Bxc6 {[%clk 0:03:01]}  bxc6 {[%clk 0:02:55]} 7. c4 {[%clk 0:03:00]}  e5 {[%clk 0:02:51]} 8. Qd3 {[%clk 0:03:00]}  Nf6 {[%clk 0:02:51]} 9. Bg5 {[%clk 0:02:59]}  Be7 {[%clk 0:02:52]} 10. Bxf6 {[%clk 0:02:59]}  Bxf6 {[%clk 0:02:38]} 11. Qxd6 {[%clk 0:02:58]}  Be7 {[%clk 0:02:21]} 12. Qxe5 {[%clk 0:02:55]}  O-O {[%clk 0:02:22]} 13. O-O {[%clk 0:02:55]}  Bf6 {[%clk 0:02:20]} 14. Qh5 {[%clk 0:02:40]}  Bxb2 {[%clk 0:02:17]} 15. Nbd2 {[%clk 0:02:39]}  Bxa1 {[%clk 0:02:13]} 16. Rxa1 {[%clk 0:02:40]}  Qf6 {[%clk 0:01:45]} 17. Re1 {[%clk 0:02:35]}  Rfe8 {[%clk 0:01:39]} 18. h3 {[%clk 0:02:35]}  Rab8 {[%clk 0:01:28]} 19. Nb3 {[%clk 0:02:34]}  g6 {[%clk 0:01:22]} 20. Qh6 {[%clk 0:02:31]}  Be6 {[%clk 0:01:01]} 21. e5 {[%clk 0:02:28]}  Qg7 {[%clk 0:00:59]} 22. Qf4 {[%clk 0:02:28]}  h6 {[%clk 0:00:57]} 23. Nc5 {[%clk 0:02:22]}  Bf5 {[%clk 0:00:46]} 24. g4 {[%clk 0:02:21]}  Bc8 {[%clk 0:00:39]} 25. Ne4 {[%clk 0:02:20]}  Kh8 {[%clk 0:00:35]} 26. Nf6 {[%clk 0:02:19]}  Rd8 {[%clk 0:00:33]} 27. Nd4 {[%clk 0:02:05]}  Bb7 {[%clk 0:00:22]} 28. c5 {[%clk 0:02:05]}  Rbc8 {[%clk 0:00:17]} 29. Re3 {[%clk 0:02:05]}  Ba6 {[%clk 0:00:16]} 30. Ra3 {[%clk 0:02:04]}  Bc4 {[%clk 0:00:15]} 31. Rxa7 {[%clk 0:02:04]}  Rd5 {[%clk 0:00:14]} 32. Nxd5 {[%clk 0:02:03]}  Bxd5 {[%clk 0:00:13]} 33. Kh2 {[%clk 0:01:50]}  Re8 {[%clk 0:00:10]} 34. Kg3 {[%clk 0:01:39]}  Rxe5 {[%clk 0:00:05]} 35. f3 {[%clk 0:01:39]}  Re6 {[%clk 0:00:01]} 36. Nxe6 {[%clk 0:01:38]}  Bxe6 {[%clk 0:00:02]} 37. Qb8+ {[%clk 0:01:36]}  Kh7 {[%clk 0:00:02]} 38. Ra8 {[%clk 0:01:36]}  g5 {[%clk 0:00:02]} 39. a4 {[%clk 0:01:19]}  Kg6 {[%clk 0:00:02]} 40. Qg8 {[%clk 0:01:17]}  f6 {[%clk 0:00:01]} 41. Qxg7+ {[%clk 0:01:17]}  Kxg7 {[%clk 0:00:02]} 42. a5 {[%clk 0:01:17]}  Bc4 {[%clk 0:00:03]} 43. a6 {[%clk 0:01:17]}  Kg6 {[%clk 0:00:03]} 44. a7 {[%clk 0:01:18]}  h5 {[%clk 0:00:02]} 45. Rb8 {[%clk 0:01:15]}  h4+ {[%clk 0:00:02]} 46. Kf2 {[%clk 0:01:15]}  f5 {[%clk 0:00:02]} 47. a8=Q {[%clk 0:01:16]}  fxg4 {[%clk 0:00:03]} 48. Rg8+ {[%clk 0:01:16]}  Bxg8 {[%clk 0:00:03]} 49. Qxg8+ {[%clk 0:01:15]}  Kf5 {[%clk 0:00:04]} 50. Qf7+ {[%clk 0:01:15]}  Ke5 {[%clk 0:00:04]} 51. Qe7+ {[%clk 0:01:15]}  Kf4 {[%clk 0:00:04]} 52. Qd6+ {[%clk 0:01:15]}  Kf5 {[%clk 0:00:05]} 53. hxg4# {[%clk 0:01:15]} 1-0


[Site "https://www.chess.com"]

[Event "Titled Tuesday Blitz November 07 Late 2023"]
[White "Fernandez Bustamante, Leancy B."]
[Black "Luczak, Filip"]
[WhiteFideId "3523870"]
[BlackFideId "1193686"]
[WhiteElo "2343"]
[BlackElo "2691"]
[Result "0-1"]
[Round "2"]
[TimeControl "180+1"]
[Date "2023.11.07"]
[WhiteClock "0:01:03"]
[BlackClock "0:01:57"]
[Board "73"]

1. e4 {[%clk 0:03:00]}  g6 {[%clk 0:03:00]} 2. Nf3 {[%clk 0:03:00]}  Bg7 {[%clk 0:02:59]} 3. d4 {[%clk 0:02:58]}  c5 {[%clk 0:02:59]} 4. Nc3 {[%clk 0:02:58]}  Nc6 {[%clk 0:02:59]} 5. d5 {[%clk 0:02:55]}  Nd4 {[%clk 0:02:59]} 6. Be3 {[%clk 0:02:54]}  Qb6 {[%clk 0:02:59]} 7. Na4 {[%clk 0:02:34]}  Qa5+ {[%clk 0:02:53]} 8. c3 {[%clk 0:02:33]}  Nxf3+ {[%clk 0:02:53]} 9. gxf3 {[%clk 0:02:32]}  d6 {[%clk 0:02:53]} 10. a3 {[%clk 0:02:14]}  b5 {[%clk 0:02:48]} 11. Nxc5 {[%clk 0:02:04]}  dxc5 {[%clk 0:02:48]} 12. Bxc5 {[%clk 0:02:03]}  Bxc3+ {[%clk 0:02:46]} 13. Ke2 {[%clk 0:01:54]}  Bg7 {[%clk 0:02:42]} 14. b4 {[%clk 0:01:51]}  Qa6 {[%clk 0:02:33]} 15. Ra2 {[%clk 0:01:51]}  Nf6 {[%clk 0:02:31]} 16. Qd3 {[%clk 0:01:47]}  Bd7 {[%clk 0:02:29]} 17. h4 {[%clk 0:01:44]}  Nh5 {[%clk 0:02:29]} 18. Ke1 {[%clk 0:01:41]}  Rc8 {[%clk 0:02:20]} 19. Qd2 {[%clk 0:01:35]}  Be5 {[%clk 0:02:14]} 20. a4 {[%clk 0:01:32]}  Qf6 {[%clk 0:02:13]} 21. axb5 {[%clk 0:01:20]}  Bc3 {[%clk 0:02:11]} 22. Be2 {[%clk 0:01:15]}  O-O {[%clk 0:02:05]} 23. Rxa7 {[%clk 0:01:14]}  Bxd2+ {[%clk 0:02:02]} 24. Kxd2 {[%clk 0:01:13]}  Qb2+ {[%clk 0:01:58]} 25. Ke3 {[%clk 0:01:12]}  Rxc5 {[%clk 0:01:58]} 26. bxc5 {[%clk 0:01:10]}  Qc3+ {[%clk 0:01:58]} 27. Bd3 {[%clk 0:01:03]}  Qxc5+ {[%clk 0:01:57]} 0-1


[Site "https://www.chess.com"]